bitfinex-derivatives/quotes_ETHF0:USTF0_20250405
["timestamp","ask_amount","ask_price","bid_price","bid_amount"]
[1743867368224,0.78464,1785.0,1784.9,2.95234493]
[1743867368425,0.78464,1785.0,1784.9,2.95226183]
[1743867369634,0.78464,1785.0,1784.9,2.16761183]
[1743867370236,2.2423,1785.1,1784.9,2.95226183]
[1743867370434,2.2423,1785.1,1784.9,2.20745]
[1743867370733,2.2423,1785.1,1785.0,3.56234006]
[1743867370933,2.2423,1785.1,1785.0,2.8175]
[1743867371137,2.2423,1785.1,1785.0,3.56234306]
[1743867372336,2.2423,1785.1,1785.0,3.5624252]
[1743867372830,0.79293668,1785.2,1785.0,4.3470352]
[1743867373034,0.79293668,1785.2,1785.1,2.2196252]
[1743867373439,0.79290668,1785.2,1785.1,2.2196252]
[1743867373938,0.79290668,1785.2,1785.1,3.0041852]
[1743867374129,0.79290668,1785.2,1785.1,2.2196252]
[1743867374630,0.79290668,1785.2,1785.1,3.0041852]
[1743867374830,0.79290668,1785.2,1785.1,2.2196252]
[1743867375034,0.00838668,1785.2,1785.1,3.0041852]
[1743867375233,0.00838668,1785.2,1785.1,3.00422724]
[1743867375440,0.79290668,1785.2,1785.1,2.21966724]
[1743867376143,0.79290668,1785.2,1785.1,2.21966859]
[1743867376433,0.78456,1785.1,1785.0,3.595]
[1743867376738,3.67516,1785.1,1785.0,4.34006282]
[1743867377235,3.67516,1785.1,1785.0,5.04856282]
[1743867377938,3.67516,1785.1,1785.0,5.04861118]
[1743867378833,3.67516,1785.1,1785.0,0.74511118]
[1743867379041,2.8906,1785.1,1784.7,3.9174]
[1743867379232,4.6389,1785.0,1784.5,37.59002]
[1743867379428,0.78469,1784.8,1784.6,0.74511927]
[1743867379635,2.93915,1784.7,1784.5,37.59002]
[1743867379837,1.4311,1784.6,1784.5,37.59002]
[1743867380035,1.4311,1784.6,1784.5,38.33513352]
[1743867380238,2.21588,1784.6,1784.5,37.55031352]
[1743867380437,1.4311,1784.6,1784.5,36.85194352]
[1743867380743,1.4311,1784.6,1784.5,38.33514352]
[1743867381443,2.21588,1784.6,1784.5,37.54982693]
[1743867381644,2.21588,1784.6,1784.5,36.06662693]
[1743867381845,1.4311,1784.6,1784.5,36.85145693]
[1743867382345,1.4311,1784.6,1784.5,38.33625693]
[1743867383345,1.4311,1784.6,1784.5,38.33592906]
[1743867383648,1.4311,1784.6,1784.5,38.33593977]
[1743867384040,1.4311,1784.6,1784.5,3.01393977]
[1743867384339,1.4311,1784.6,1784.5,3.01381018]
[1743867384540,0.7233,1784.7,1784.6,0.78478]
[1743867384740,2.2371,1784.7,1784.6,3.01376018]
[1743867385142,2.2371,1784.7,1784.6,2.26958]
[1743867385348,2.2371,1784.7,1784.6,3.01372298]
[1743867385847,2.69194,1785.1,1784.6,2.22894298]
[1743867385848,0.78468,1784.9,1784.6,2.22894298]
[1743867386043,2.25488,1784.9,1784.8,0.78469]
[1743867386246,1.4702,1784.9,1784.8,0.78469]
[1743867386551,1.4702,1784.9,1784.8,3.05121695]
[1743867386760,0.79293668,1785.2,1785.0,0.78461]
[1743867386945,2.26313668,1785.2,1785.1,0.78456]
[1743867387249,2.26313668,1785.2,1785.0,0.78459]
[1743867387547,2.26313668,1785.2,1785.1,0.78456]
[1743867387743,2.26310668,1785.2,1785.1,0.7415]
[1743867387943,2.26310668,1785.2,1785.1,2.264]
[1743867388150,2.26310668,1785.2,1785.1,3.04856]
[1743867388948,2.26310668,1785.2,1785.1,2.264]
[1743867389652,2.26310668,1785.2,1785.1,0.7415]
[1743867391655,2.26310668,1785.2,1785.0,6.5693]
[1743867391862,0.79290668,1785.2,1785.0,6.5693]
[1743867392153,0.00838668,1785.2,1785.0,6.5693]
[1743867392356,0.79291668,1785.2,1785.0,6.5693]
[1743867393151,0.79291668,1785.2,1785.0,0.7846]
[1743867393351,1.4669,1785.1,1785.0,0.7846]
[1743867393552,1.4669,1785.1,1785.0,1.52860301]
[1743867393753,0.00838668,1785.2,1785.1,0.78456]
[1743867393954,0.00838668,1785.2,1785.1,2.17646]
[1743867395659,0.00838668,1785.2,1785.1,2.92034585]
[1743867396253,0.00838668,1785.2,1785.1,6.12814585]
[1743867397953,0.00838668,1785.2,1785.1,6.12799685]
[1743867399161,3.2078,1786.0,1785.2,1.9613]
[1743867399366,0.7494,1785.7,1785.6,0.78434]
[1743867399555,0.7494,1785.7,1785.5,3.99216]
[1743867399762,1.4454,1785.6,1785.5,3.99216]
[1743867400057,1.4454,1785.6,1785.5,5.40646]
[1743867400258,1.4454,1785.6,1785.5,3.2078]
[1743867400463,0.7844,1785.5,1785.4,0.00838668]
[1743867400661,2.95667,1785.6,1785.4,0.00838668]
[1743867400964,1.528,1785.5,1785.4,0.71018668]
[1743867401767,1.528,1785.5,1785.4,1.49461668]
[1743867402666,1.528,1785.5,1785.4,3.01461668]
[1743867402869,1.528,1785.5,1785.4,3.75734558]
[1743867403265,0.75778668,1785.7,1785.4,2.97291558]
[1743867403462,0.00838668,1785.7,1785.5,4.7278]
[1743867403768,0.00838668,1785.7,1785.6,3.81041244]
[1743867403967,0.00838668,1785.7,1785.6,6.66894]
[1743867404265,0.00838668,1785.7,1785.6,7.41114089]
[1743867404566,0.00838668,1785.7,1785.6,7.41108158]
[1743867404765,0.00838668,1785.7,1785.6,7.41107463]
[1743867405158,0.00838668,1785.7,1785.6,6.66894]
[1743867406068,0.00838668,1785.7,1785.6,3.06794]
[1743867406268,0.00838668,1785.7,1785.6,1.54284]
[1743867406466,1.45508668,1785.7,1785.6,1.54284]
[1743867408774,1.45508668,1785.7,1785.6,2.95864]
[1743867409881,0.78414,1786.1,1785.9,0.78421]
[1743867410074,2.93884,1786.1,1785.9,0.78421]
[1743867410278,2.1547,1786.1,1786.0,0.78417]
[1743867410478,0.78407,1786.3,1786.1,0.78411]
[1743867410779,4.6442,1786.4,1786.2,0.78408]
[1743867411075,2.22041,1786.4,1786.2,0.78407]
[1743867411282,2.2204,1786.4,1786.2,0.78407]
[1743867411682,1.4364,1786.4,1786.2,0.78407]
[1743867411878,1.4364,1786.4,1786.3,0.78404]
[1743867412085,0.00838668,1786.5,1786.3,0.78404]
[1743867412381,0.00838668,1786.5,1786.4,0.78399]
[1743867412773,0.00838668,1786.5,1786.4,4.39199]
[1743867412978,0.00838668,1786.5,1786.4,7.26519]
[1743867420485,0.00838668,1786.5,1786.4,4.39199]
[1743867420686,0.00838668,1786.5,1786.4,7.37319]
[1743867421876,1.49138668,1786.5,1786.4,7.37319]
[1743867422792,0.00838668,1786.5,1786.4,7.37319]
[1743867423595,0.00838668,1786.5,1786.4,48.17319]
[1743867425894,1.483,1786.7,1786.6,0.7839]
[1743867426194,1.483,1786.7,1786.6,3.9917]
[1743867427699,2.26686,1786.7,1786.6,3.2078]
[1743867429586,1.483,1786.7,1786.6,3.2078]
[1743867429790,2.26687,1786.7,1786.5,3.00773668]
[1743867429991,1.483,1786.7,1786.6,0.7839]
[1743867430194,1.483,1786.7,1786.6,2.9449]
[1743867430389,2.26687,1786.7,1786.5,1.56280668]
[1743867430600,1.4858,1786.6,1786.5,0.00838668]
[1743867430895,2.2136,1786.6,1786.5,0.79233668]
[1743867431097,1.4948,1786.6,1786.5,2.26593668]
[1743867433501,1.4948,1786.6,1786.5,0.79233668]
[1743867433794,2.9397,1786.6,1786.5,0.79233668]
[1743867436398,3.7236,1786.6,1786.5,0.00838668]
[1743867436594,0.78395,1786.5,1786.4,3.2078]
[1743867436901,0.78405,1786.3,1786.1,39.68411]
[1743867437099,2.8932,1786.2,1786.1,80.48411]
[1743867437304,2.8932,1786.2,1786.1,45.93811307]
[1743867437702,2.8932,1786.2,1786.1,42.32611307]
[1743867438204,2.8932,1786.2,1786.1,43.85251307]
[1743867439300,0.78401,1786.4,1786.1,43.06840307]
[1743867439601,3.72419,1786.5,1786.4,0.78399]
[1743867439908,3.72419,1786.5,1786.3,0.78401]
[1743867440201,1.519,1786.4,1786.3,1.49871]
[1743867440403,1.519,1786.4,1786.3,3.6751284]
[1743867440904,1.519,1786.4,1786.3,3.67512318]
[1743867441110,0.78393,1786.6,1786.4,0.78399]
[1743867441298,0.7839,1786.6,1786.4,2.94389]
[1743867441504,1.519,1786.5,1786.4,2.94389]
[1743867441705,1.519,1786.5,1786.4,3.68814264]
[1743867442305,1.519,1786.5,1786.4,6.89594264]
[1743867442705,2.30295,1786.5,1786.4,4.67965264]
[1743867443406,2.30295,1786.5,1786.4,0.74425264]
[1743867443708,0.78401,1786.4,1786.2,5.42415]
[1743867443900,2.99471,1786.4,1786.3,0.74434347]
[1743867444306,2.99471,1786.4,1786.3,0.74430927]
[1743867444506,2.2107,1786.4,1786.3,1.52834927]
[1743867444706,1.5163,1786.4,1786.3,3.06804927]
[1743867444907,1.5163,1786.4,1786.3,0.74430927]
[1743867445110,2.30029,1786.4,1786.3,0.74430927]
[1743867445408,0.78412,1786.1,1786.0,3.21618668]
[1743867445705,0.78412,1786.1,1786.0,0.75258025]
[1743867446101,2.30042,1786.1,1786.0,0.00838668]
[1743867446897,4.80042,1786.1,1786.0,0.00838668]
[1743867448208,2.30042,1786.1,1786.0,0.00838668]
[1743867448907,4.80042,1786.1,1786.0,0.00838668]
[1743867450810,0.78437,1785.6,1785.3,4.40845]
[1743867451007,0.7206,1785.5,1785.4,0.78443]
[1743867451203,2.1879,1785.5,1785.4,41.58443]
[1743867451512,2.1879,1785.5,1785.4,44.79223]
[1743867451905,2.1879,1785.5,1785.4,3.99223]
[1743867453613,2.1879,1785.5,1785.4,5.38423]
[1743867453911,0.00838668,1785.6,1785.5,0.78439]
[1743867454112,0.00838668,1785.6,1785.5,2.87789]
[1743867454311,1.42098668,1785.6,1785.5,2.87789]
[1743867454711,1.42098668,1785.6,1785.5,2.0935]
[1743867454907,0.00838668,1785.6,1785.5,2.87789]
[1743867455112,0.00838668,1785.6,1785.5,5.37789]
[1743867455514,0.00838668,1785.6,1785.5,46.17789]
[1743867456318,0.00838668,1785.6,1785.5,43.67789]
[1743867457721,0.00838668,1785.6,1785.5,46.88569]
[1743867463022,0.00838668,1785.6,1785.5,47.62716985]
[1743867463326,0.00838668,1785.6,1785.5,47.62730886]
[1743867464219,0.00838668,1785.6,1785.5,46.88569]
[1743867464427,0.00838668,1785.6,1785.5,47.62734058]
[1743867465525,0.00838668,1785.6,1785.5,10.44034058]
[1743867466225,1.52388668,1785.6,1785.5,10.44034058]
[1743867466427,2.30822668,1785.6,1785.5,10.43934058]
[1743867466726,0.09748759,1786.9,1786.0,0.78417]
[1743867466925,3.2078,1786.7,1786.3,3.2078]
[1743867467131,0.78406,1786.3,1786.2,3.703]
[1743867467825,1.41428668,1786.4,1786.2,3.703]
[1743867468023,1.52014,1786.3,1786.1,41.59249668]
[1743867468220,1.4059,1786.2,1786.1,40.80838668]
[1743867468820,1.4059,1786.2,1786.1,0.00838668]
[1743867469221,1.4059,1786.2,1786.1,0.79250668]
[1743867469623,2.18998,1786.2,1786.1,0.00838668]
[1743867470029,2.95088,1786.2,1786.1,0.00838668]
[1743867471222,2.1668,1786.2,1786.1,0.00838668]
[1743867471524,2.95088,1786.2,1786.1,0.00838668]
[1743867473029,2.1668,1786.2,1786.1,0.00838668]
[1743867473329,0.78421,1785.9,1785.8,3.2078]
[1743867473630,0.7842,1786.0,1785.8,3.2078]
[1743867473819,2.1925,1785.9,1785.8,3.2078]
[1743867474223,2.97671,1785.9,1785.8,3.2078]
[1743867474923,0.78426,1785.8,1785.7,1.52908668]
[1743867475220,2.27616,1785.8,1785.7,0.00838668]
[1743867475420,2.98246,1785.8,1785.7,0.00838668]
[1743867476020,5.48246,1785.8,1785.7,0.00838668]
[1743867476729,2.98246,1785.8,1785.7,0.00838668]
[1743867480836,8.69026,1785.8,1785.7,0.00838668]
[1743867487934,6.19026,1785.8,1785.7,0.00838668]
[1743867490542,5.48396,1785.8,1785.7,0.00838668]
[1743867490745,5.48396,1785.8,1785.7,0.73448668]
[1743867492342,0.7177,1786.1,1785.7,0.73448668]
[1743867492547,2.1132,1786.1,1785.8,6.21742]
[1743867492739,0.78415,1786.1,1785.9,2.2687]
[1743867492941,0.78415,1786.1,1786.0,1.4845]
[1743867493146,0.78415,1786.1,1786.0,2.1782]
[1743867498451,2.18481,1786.2,1786.0,2.1782]
[1743867498652,7.60678668,1786.4,1786.1,1.4232]
[1743867498953,0.78404,1786.3,1786.2,0.7503]
[1743867499547,9.13238668,1786.4,1786.2,0.7503]
[1743867499548,4.74178668,1786.4,1786.2,0.7503]
[1743867499851,0.78404,1786.3,1786.2,2.1735]
[1743867500250,2.30964,1786.3,1786.2,2.1735]
[1743867501755,0.78412,1786.2,1786.0,3.679]
[1743867501950,3.05842,1786.2,1786.0,5.9254]
[1743867502151,3.05842,1786.2,1786.1,1.5387]
[1743867503357,0.78406,1786.3,1786.1,1.5387]
[1743867503549,4.00019668,1786.4,1786.2,0.78407]
[1743867503747,4.00019668,1786.4,1786.3,1.5387]
[1743867505453,4.00019668,1786.4,1786.0,8.37465]
[1743867505658,0.7841,1786.2,1786.1,1.5263]
[1743867505857,0.78412,1786.1,1786.0,3.9155]
[1743867506059,2.18272,1786.1,1786.0,3.9155]
[1743867509859,2.18272,1786.1,1786.0,0.7077]
[1743867511361,0.78426,1785.8,1785.7,0.00838668]
[1743867511560,7.70006,1785.8,1785.7,0.00838668]
[1743867511759,10.20006,1785.8,1785.7,0.00838668]
[1743867512265,8.46396,1785.8,1785.7,0.00838668]
[1743867516360,3.99206,1785.8,1785.7,0.00838668]
[1743867516564,1.5067,1785.9,1785.7,0.00838668]
[1743867516870,0.78426,1785.8,1785.7,0.72778668]
[1743867517366,0.78426,1785.8,1785.7,41.52778668]
[1743867517873,2.29094,1785.9,1785.7,41.52778668]
[1743867518167,2.29094,1785.9,1785.8,1.4787]
[1743867520071,2.2334,1786.0,1785.8,1.4787]
[1743867520370,1.4492,1786.0,1785.8,42.2787]
[1743867520571,0.78421,1785.9,1785.8,1.4787]
[1743867520962,2.86,1786.0,1785.8,1.4787]
[1743867521269,2.86,1786.0,1785.7,0.72778668]
[1743867521570,3.99206,1785.8,1785.7,0.00838668]
[1743867522273,5.40286,1785.8,1785.7,0.00838668]
[1743867523868,2.19506,1785.8,1785.7,0.00838668]
[1743867529472,1.4108,1785.8,1785.7,0.00838668]
[1743867529677,1.4053,1786.0,1785.7,4.74477954]
[1743867529877,0.78422,1785.9,1785.8,0.7309]
[1743867530078,0.78422,1785.9,1785.8,2.1846]
[1743867533982,0.78426,1785.8,1785.7,0.00838668]
[1743867534183,0.78426,1785.8,1785.7,2.19118668]
[1743867534383,0.78426,1785.8,1785.7,2.93494681]
[1743867534683,1.4053,1786.0,1785.7,2.93494681]
[1743867534884,1.4053,1786.0,1785.7,2.19118668]
[1743867535086,0.78426,1785.8,1785.7,2.19118668]
[1743867535286,0.78426,1785.8,1785.7,2.93498163]
[1743867535687,0.78424,1785.9,1785.7,2.93498163]
[1743867535890,0.78424,1785.9,1785.8,1.4818]
[1743867537183,0.78424,1785.9,1785.8,2.22600857]
[1743867537577,0.78424,1785.9,1785.8,1.4818]
[1743867537980,0.78424,1785.9,1785.8,2.22601445]
[1743867538995,0.78424,1785.9,1785.8,2.22600874]
[1743867540789,0.78424,1785.9,1785.8,2.22615283]
[1743867541884,0.78424,1785.9,1785.8,2.22615661]
[1743867543891,0.78424,1785.9,1785.8,2.22637752]
[1743867544585,0.78424,1785.9,1785.7,0.73558668]
[1743867544586,0.78426,1785.8,1785.7,0.00838668]
[1743867544784,3.73796,1785.8,1785.7,0.00838668]
[1743867545097,6.23796,1785.8,1785.7,0.00838668]
[1743867545585,6.23796,1785.8,1785.7,6.68e-06]
[1743867546290,6.3384586,1785.8,1785.7,6.68e-06]
[1743867548587,6.23796,1785.8,1785.7,6.68e-06]
[1743867548788,3.73796,1785.8,1785.7,6.68e-06]
[1743867550295,6.23796,1785.8,1785.7,6.68e-06]
[1743867550595,6.33844696,1785.8,1785.7,6.68e-06]
[1743867552195,6.23796,1785.8,1785.7,6.68e-06]
[1743867552589,6.33844598,1785.8,1785.7,6.68e-06]
[1743867553086,6.23796,1785.8,1785.7,6.68e-06]
[1743867553686,3.73796,1785.8,1785.7,6.68e-06]
[1743867553899,7.40696,1785.8,1785.7,6.68e-06]
[1743867561804,3.73796,1785.8,1785.7,6.68e-06]
[1743867562004,6.66286,1785.8,1785.7,6.68e-06]
[1743867562900,5.95406,1785.8,1785.7,6.68e-06]
[1743867574016,0.78426,1785.8,1785.7,6.68e-06]
[1743867574215,0.78426,1785.8,1785.7,2.26000668]
[1743867579428,3.2078,1785.9,1785.7,2.26000668]
[1743867579631,3.99201,1785.9,1785.8,1.5328]
[1743867582220,0.7842,1786.0,1785.8,1.5328]
[1743867582620,3.99195,1786.1,1785.8,2.31704]
[1743867582920,0.78413,1786.1,1785.9,0.7444057]
[1743867583225,0.78413,1786.1,1786.0,2.2157]
[1743867583829,2.27163,1786.1,1786.0,2.2157]
[1743867592739,1.4875,1786.1,1786.0,2.2157]
[1743867593037,1.4875,1786.1,1786.0,2.9788]
[1743867595646,2.27162,1786.1,1786.0,2.9788]
[1743867596345,2.27162,1786.1,1786.0,2.2157]
[1743867596641,1.4875,1786.1,1786.0,2.2157]
[1743867597844,2.27162,1786.1,1786.0,2.2157]
[1743867598144,1.4875,1786.1,1786.0,2.2157]
[1743867599038,2.27162,1786.1,1786.0,2.2157]
[1743867599336,1.4875,1786.1,1786.0,2.2157]
[1743867599642,2.27162,1786.1,1786.0,2.2157]
[1743867599838,2.27162,1786.1,1785.9,1.52091]
[1743867600044,1.3878,1786.0,1785.9,1.52091]
[1743867600241,1.3878,1786.0,1785.3,1.9611]
[1743867600545,0.78513,1783.8,1783.7,42.56237553]
[1743867600741,8.29193,1783.8,1783.7,30.06720983]
[1743867601041,14.18393,1783.8,1783.7,19.39758729]
[1743867601243,14.19393,1783.8,1783.7,19.39758729]
[1743867601646,14.19393,1783.8,1783.7,6.14840268]
[1743867602243,3.2078,1783.6,1782.8,40.8]
[1743867602449,3.2078,1783.0,1782.9,8.90985645]
[1743867603546,3.2078,1783.3,1782.9,14.61765645]
[1743867603745,7.5268,1783.5,1783.0,7.46985645]
[1743867603947,5.892,1783.8,1783.3,3.2078]
[1743867604146,5.892,1783.8,1783.4,1.44]
[1743867604448,7.54218668,1783.9,1783.4,8.90985645]
[1743867604651,7.5298,1784.0,1783.5,10.67765645]
[1743867604844,7.5298,1784.0,1783.6,1.4644]
[1743867605039,3.2078,1784.0,1783.6,8.93425645]
[1743867605341,4.316,1784.3,1783.7,10.67765645]
[1743867605549,5.10477,1784.7,1784.2,3.2078]
[1743867605843,0.78478,1784.6,1784.3,4.6722]
[1743867606050,21.57698652,1784.4,1784.3,4.6722]
[1743867606251,21.57698652,1784.4,1784.3,45.4722]
[1743867607449,22.36185652,1784.4,1784.3,45.4722]
[1743867607650,21.57698652,1784.4,1784.3,45.4722]
[1743867608452,21.57698652,1784.4,1784.3,4.6722]
[1743867608653,21.57698652,1784.4,1784.3,12.14205645]
[1743867609047,21.57698652,1784.4,1784.3,52.94205645]
[1743867609953,14.74740167,1784.4,1784.3,52.94205645]
[1743867610149,14.74740167,1784.4,1784.3,53.72696645]
[1743867610460,14.74740167,1784.4,1784.3,52.94205645]
[1743867610853,14.74740167,1784.4,1784.3,79.91765645]
[1743867611054,14.74740167,1784.4,1784.3,39.11765645]
[1743867611651,14.74740167,1784.4,1784.3,39.90256645]
[1743867611852,14.74740167,1784.4,1784.3,39.11765645]
[1743867612655,14.74740167,1784.4,1784.3,39.90256645]
[1743867613655,14.74740167,1784.4,1784.3,34.69790531]
[1743867613852,14.74740167,1784.4,1784.3,7.72230531]
[1743867614053,0.00841113,1784.6,1784.3,10.22230531]
[1743867614260,1.48506853,1784.8,1784.5,3.99261]
[1743867614559,0.70036853,1784.8,1784.7,3.2078]
[1743867614857,1.48505853,1784.8,1784.7,3.2078]
[1743867615047,0.70036853,1784.8,1784.7,6.93739531]
[1743867615756,1.49344966,1784.9,1784.5,3.2078]
[1743867615957,0.7847,1784.8,1784.5,3.99259]
[1743867616156,1.49345966,1784.9,1784.5,3.99259]
[1743867616356,1.49345966,1784.9,1784.6,0.78478]
[1743867616657,1.49344966,1784.9,1784.5,3.99259]
[1743867616964,0.70877966,1784.9,1784.6,1.4365]
[1743867617458,0.70877966,1784.9,1784.6,2.22125]
[1743867617956,0.70877966,1784.9,1784.2,40.8]
[1743867617957,3.2078,1784.7,1783.3,3.2078]
[1743867618256,6.607,1784.6,1783.5,1.4365]
[1743867618461,3.2078,1783.9,1783.5,3.44146]
[1743867618660,3.99293,1783.9,1783.5,3.44146]
[1743867618858,3.2078,1783.7,1783.5,3.44146]
[1743867619458,3.2078,1783.7,1783.5,1.4365]
[1743867619660,4.6648,1783.7,1783.5,1.4365]
[1743867619858,0.78522,1783.6,1783.5,1.4365]
[1743867620762,9.39068566,1783.6,1783.5,1.4365]
[1743867621963,9.39068566,1783.6,1783.3,31.72247586]
[1743867622259,3.2078,1783.4,1783.3,31.72247586]
[1743867623061,3.2078,1783.4,1783.3,33.72743586]
[1743867624967,3.99311,1783.4,1783.3,13.5251079]
[1743867625162,3.99311,1783.4,1783.3,14.9498079]
[1743867626468,12.57883312,1783.4,1783.3,14.9498079]
[1743867626864,12.57883312,1783.4,1783.2,41.5191]
[1743867627166,0.78535,1783.3,1783.2,41.5191]
[1743867628361,12.57885312,1783.4,1783.2,42.3045]
[1743867628961,12.57885312,1783.4,1783.2,41.5191]
[1743867629670,11.79352312,1783.4,1783.2,41.5191]
[1743867629866,12.57886312,1783.4,1783.2,42.3045]
[1743867630066,12.57886312,1783.4,1783.3,1.4073]
[1743867633974,10.42583203,1783.4,1783.3,1.4073]
[1743867636077,9.64049203,1783.4,1783.3,1.4073]
[1743867636376,10.42580203,1783.4,1783.3,1.4073]
[1743867637379,10.42580203,1783.4,1783.3,2.19265]
[1743867637981,13.42053788,1783.4,1783.3,1.4073]
[1743867639175,13.42053788,1783.4,1783.3,2.19265]
[1743867639377,13.42053788,1783.4,1783.3,1.4073]
[1743867641479,15.56696866,1783.4,1783.3,1.4073]
[1743867641674,15.56696866,1783.4,1783.2,4.9871]
[1743867641675,14.78165866,1783.4,1783.2,0.7191]
[1743867641876,16.74496866,1783.4,1782.9,35.346]
[1743867642179,0.78549,1783.0,1782.9,35.346]
[1743867642581,2.30719,1783.0,1782.9,35.346]
[1743867644282,0.78557,1782.8,1782.7,43.7409]
[1743867644581,3.99337,1782.8,1782.7,43.7409]
[1743867645278,7.67178,1782.8,1782.1,39.597]
[1743867645472,3.99361,1782.3,1782.2,1.511]
[1743867645675,3.2078,1782.3,1781.5,35.35]
[1743867645979,3.2078,1782.2,1781.9,0.78596]
[1743867646280,0.78588,1782.1,1782.0,2.2159]
[1743867646675,3.99367,1782.2,1782.0,3.00182]
[1743867646879,3.99367,1782.2,1782.0,2.2159]
[1743867647094,3.2078,1782.2,1782.0,2.2159]
[1743867647401,3.2078,1782.2,1782.0,3.00182]
[1743867648204,0.78583,1782.3,1782.0,2.2159]
[1743867648396,3.99358,1782.4,1782.1,0.78588]
[1743867648594,3.99358,1782.4,1782.2,6.3695]
[1743867648794,3.2078,1782.4,1782.2,6.3695]
[1743867649097,0.78572,1782.5,1782.3,0.7858]
[1743867649298,0.78572,1782.5,1782.4,1.4064]
[1743867650404,0.78588,1782.2,1782.0,4.9479]
[1743867650602,3.2078,1782.3,1782.1,42.3387]
[1743867650806,3.9936,1782.3,1782.2,1.5387]
[1743867651302,3.2078,1782.3,1782.2,1.5387]
[1743867651504,3.9936,1782.3,1782.2,1.5387]
[1743867652099,0.78584,1782.2,1782.1,40.8]
[1743867652402,2.21264,1782.2,1782.1,40.8]
[1743867655604,13.68647086,1782.2,1782.1,40.8]
[1743867659402,11.47383086,1782.2,1782.1,41.58588]
[1743867659703,23.05630706,1782.2,1782.1,40.8]
[1743867660108,23.05630706,1782.2,1782.0,7.2605]
[1743867660407,0.78588,1782.1,1782.0,7.2605]
[1743867660607,0.78588,1782.1,1782.0,6.4746]
[1743867661110,0.78588,1782.1,1782.0,48.06053]
[1743867662313,0.78588,1782.1,1782.0,47.2746]
[1743867663002,23.05633706,1782.2,1782.0,48.06053]
[1743867663209,12.25970086,1782.2,1782.0,48.06053]
[1743867663602,11.47383086,1782.2,1782.1,0.78588]
[1743867664307,12.25967086,1782.2,1782.1,0.78588]
[1743867664508,12.25967086,1782.2,1781.9,4.95595]
[1743867664509,0.7859,1782.1,1781.9,4.95595]
[1743867664710,0.7859,1782.1,1781.9,7.86355]
[1743867664912,0.7859,1782.1,1782.0,40.8]
[1743867665207,0.7859,1782.1,1782.0,42.2202]
[1743867665607,0.7859,1782.1,1782.0,46.3832]
[1743867666302,0.78597,1781.9,1781.7,4.94603]
[1743867666508,2.19916,1782.0,1781.8,0.78602]
[1743867666711,3.04142722,1782.0,1781.8,4.94702]
[1743867666905,3.04142722,1782.0,1781.9,1.4948]
[1743867668611,1.62822722,1782.0,1781.9,1.4948]
[1743867668813,0.84226722,1782.0,1781.9,2.28077]
[1743867669513,1.62819722,1782.0,1781.9,1.4948]
[1743867669713,1.62819722,1782.0,1781.9,5.6388]
[1743867670910,0.84226722,1782.0,1781.9,5.6388]
[1743867671213,1.62819722,1782.0,1781.9,5.6388]
[1743867671415,1.62819722,1782.0,1781.9,6.42477]
[1743867671602,22.27046706,1782.0,1781.9,6.42477]
[1743867671803,22.27046706,1782.0,1781.9,3.62584461]
[1743867672214,23.05639706,1782.0,1781.9,3.62584461]
[1743867672418,23.05639706,1782.0,1781.9,2.83987461]
[1743867672617,22.27046706,1782.0,1781.9,3.62584461]
[1743867673013,22.27046706,1782.0,1781.9,6.12584461]
[1743867673212,22.27046706,1782.0,1781.9,7.41397]
[1743867673608,21.06826707,1782.0,1781.9,48.21397]
[1743867673912,18.36333707,1782.0,1781.9,48.21397]
[1743867675018,18.36333707,1782.0,1781.9,49.62667]
[1743867676117,17.11317707,1782.0,1781.9,49.62667]
[1743867677020,4.32871544,1782.0,1781.9,49.62667]
[1743867677217,3.17071544,1782.0,1781.9,49.62667]
[1743867677521,1.65323544,1782.0,1781.9,49.62667]
[1743867677721,6.49307316,1782.2,1782.1,0.78588]
[1743867677914,6.49307316,1782.2,1782.1,3.99368]
[1743867678120,6.49307316,1782.2,1782.1,6.49368]
[1743867678422,6.49307316,1782.2,1782.1,47.29368]
[1743867678918,6.49307316,1782.2,1782.1,51.39468]
[1743867679720,6.49307316,1782.2,1782.1,48.89468]
[1743867680726,6.49307316,1782.2,1782.1,51.39468]
[1743867681120,6.49307316,1782.2,1782.1,53.57408]
[1743867681319,6.49307316,1782.2,1782.1,49.47308]
[1743867681524,6.49307316,1782.2,1782.1,53.56308]
[1743867681818,6.49307316,1782.2,1782.1,51.06308]
[1743867684625,8.65743089,1782.3,1782.2,0.78584]
[1743867684920,8.65743089,1782.3,1782.2,37.66874]
[1743867685522,8.65743089,1782.3,1782.2,40.16874]
[1743867686827,8.65743089,1782.3,1782.2,37.66874]
[1743867687123,8.65743089,1782.3,1782.2,41.73074]
[1743867687725,18.38633785,1782.3,1782.2,41.73074]
[1743867688625,0.00841113,1782.6,1782.5,0.78571]
[1743867688826,0.00841113,1782.6,1782.5,4.84371]
[1743867689021,0.00841113,1782.6,1782.5,6.34831]
[1743867689729,0.00841113,1782.6,1782.5,4.84371]
[1743867689925,1.54047113,1782.6,1782.5,4.058]
[1743867690531,1.54047113,1782.6,1782.4,0.78572]
[1743867690730,1.4603,1782.5,1782.4,0.78572]
[1743867691031,1.4603,1782.5,1782.4,4.83772]
[1743867691629,1.4603,1782.5,1782.4,0.78572]
[1743867691829,1.4603,1782.5,1782.4,4.83372]
[1743867692123,1.54047113,1782.6,1782.5,0.78571]
[1743867692124,0.00841113,1782.6,1782.5,0.78571]
[1743867692329,0.00841113,1782.6,1782.5,2.25341]
[1743867693928,0.00841113,1782.6,1782.5,0.78571]
[1743867694627,1.49221113,1782.6,1782.5,0.78571]
[1743867694829,1.49221113,1782.6,1782.5,4.82271]
[1743867695630,1.49221113,1782.6,1782.5,0.78571]
[1743867695830,1.49221113,1782.6,1782.5,4.81771]
[1743867696627,1.49221113,1782.6,1782.5,6.31251]
[1743867699136,10.30022373,1782.6,1782.5,6.31251]
[1743867700339,8.81642373,1782.6,1782.5,6.31251]
[1743867701339,12.86538406,1783.0,1782.5,8.81251]
[1743867701539,12.86538406,1783.0,1782.9,0.78553]
[1743867701739,12.86538406,1783.0,1782.9,8.00733]